bitfinex-derivatives/quotes_BTCF0:USTF0_20260118
["timestamp","ask_amount","ask_price","bid_price","bid_amount"]
[1768699050639,0.0023152,95024.0,95011.0,0.010528]
[1768699054444,0.0023152,95024.0,95009.0,0.03813185]
[1768699054641,0.0023152,95024.0,95010.0,0.02006907]
[1768699055044,0.0023152,95024.0,95012.0,0.010528]
[1768699055846,0.0023152,95024.0,95014.0,0.010528]
[1768699056545,0.0023152,95024.0,95011.0,0.02006907]
[1768699057641,0.0023152,95024.0,95011.0,0.04851631]
[1768699057944,0.0023152,95024.0,95012.0,0.03798831]
[1768699058145,0.0023152,95024.0,95012.0,0.00954107]
[1768699058338,0.0023152,95024.0,95013.0,0.010528]
[1768699059343,0.0023152,95024.0,95013.0,0.02006907]
[1768699059543,0.0023152,95024.0,95014.0,0.00954107]
[1768699061442,0.0023152,95024.0,95014.0,0.010528]
[1768699061643,0.0023152,95024.0,95013.0,0.09243193]
[1768699062643,0.0023152,95024.0,95014.0,0.010528]
[1768699063648,0.0023152,95024.0,95014.0,0.02006907]
[1768699066243,0.09169054,95023.0,95009.0,0.02844724]
[1768699066452,0.09169054,95019.0,95008.0,0.02843377]
[1768699066649,0.11071975,95018.0,95003.0,0.0379373]
[1768699066945,0.11071975,95018.0,95001.0,0.0379373]
[1768699067248,0.11071975,95018.0,95000.0,0.0379373]
[1768699067447,0.11071975,95010.0,95000.0,0.0379373]
[1768699067845,0.11071975,95010.0,94999.0,0.0379373]
[1768699068149,0.11071975,95010.0,94999.0,0.04747837]
[1768699069052,0.11071975,95010.0,95000.0,0.010529]
[1768699069751,0.18649054,95019.0,95000.0,0.00954107]
[1768699069948,0.0948,95019.0,95001.0,0.101973]
[1768699070154,0.0948,95019.0,95002.0,0.00954107]
[1768699070453,0.0948,95019.0,95009.0,0.101973]
[1768699070654,0.0948,95019.0,95010.0,0.00954107]
[1768699072147,0.0023152,95024.0,95014.0,0.10515984]
[1768699072456,0.0948,95026.0,95014.0,0.10515984]
[1768699073956,0.0948,95026.0,95014.0,0.09518438]
[1768699080159,0.0948,95026.0,95014.0,0.11568784]
[1768699081156,0.0948,95026.0,95016.0,0.010528]
[1768699082363,0.0948,95026.0,95014.0,0.10515984]
[1768699085060,0.0948,95026.0,95014.0,0.11568784]
[1768699088166,0.11071975,95030.0,95016.0,0.010528]
[1768699088362,0.0948,95029.0,95015.0,0.010528]
[1768699089173,0.0948,95029.0,95014.0,0.10515984]
[1768699089174,0.0948,95029.0,95014.0,0.11568784]
[1768699089376,0.0948,95029.0,95016.0,0.010528]
[1768699092479,0.05809063,95033.0,95020.0,0.010527]
[1768699092776,0.0948,95040.0,95030.0,0.10515984]
[1768699093073,0.20551975,95040.0,95030.0,0.10515984]
[1768699093261,0.26222101,95040.0,95030.0,0.10515984]
[1768699093467,0.26222101,95040.0,95030.0,0.09518438]
[1768699093667,0.15150126,95040.0,95030.0,0.09518438]
[1768699093869,0.26222101,95040.0,95030.0,0.09518438]
[1768699094574,0.16742101,95040.0,95030.0,0.09518438]
[1768699094773,0.11071975,95040.0,95030.0,0.09518438]
[1768699095272,0.09711472,95044.0,95030.0,0.09518438]
[1768699095273,0.05801444,95041.0,95030.0,0.09518438]
[1768699095474,0.09711472,95044.0,95030.0,0.09518438]
[1768699095869,0.11071975,95040.0,95030.0,0.09518438]
[1768699098977,0.15443857,95044.0,95030.0,0.09518438]
[1768699099279,0.11071975,95040.0,95030.0,0.09518438]
[1768699100076,0.15443857,95044.0,95030.0,0.09518438]
[1768699100274,0.11071975,95040.0,95030.0,0.09518438]
[1768699100776,0.05963857,95044.0,95031.0,0.10515984]
[1768699100976,0.00231472,95044.0,95020.0,0.04640559]
[1768699101178,0.00231472,95044.0,95028.0,0.010526]
[1768699101981,7.2e-07,95044.0,95036.0,0.010525]
[1768699102278,7.2e-07,95044.0,95033.0,0.010526]
[1768699102767,7.2e-07,95044.0,95030.0,0.11071975]
[1768699102972,7.2e-07,95044.0,95032.0,0.00977598]
[1768699103278,0.0948,95053.0,95042.0,0.00977598]
[1768699103780,0.05746191,95055.0,95042.0,0.00977598]
[1768699103987,0.10523115,95056.0,95042.0,0.00977598]
[1768699104765,0.0948,95056.0,95042.0,0.00977598]
[1768699106185,0.0948,95056.0,95041.0,0.09828998]
[1768699106785,0.10555048,95056.0,95041.0,0.09828998]
[1768699108686,0.10555048,95056.0,95038.0,0.00977598]
[1768699108979,0.01075048,95056.0,95039.0,0.010525]
[1768699109282,0.11071975,95060.0,95042.0,0.02030098]
[1768699109773,0.0948,95060.0,95044.0,0.00977598]
[1768699109967,0.20551975,95060.0,95045.0,0.00977598]
[1768699110371,0.01050459,95060.0,95045.0,0.00977598]
[1768699110578,0.11071975,95060.0,95046.0,0.010524]
[1768699110971,0.11071975,95060.0,95045.0,0.00977598]
[1768699111172,0.0129233,95064.0,95045.0,0.02029998]
[1768699111372,0.09711423,95064.0,95045.0,0.02029998]
[1768699111781,0.09711423,95064.0,95045.0,0.00977598]
[1768699112783,0.09711423,95064.0,95047.0,0.00977598]
[1768699113082,0.10790812,95064.0,95047.0,0.00977598]
[1768699113785,0.1176236,95064.0,95046.0,0.09828998]
[1768699114084,0.1176236,95064.0,95043.0,0.00977598]
[1768699116087,0.00947452,95063.0,95043.0,0.00977598]
[1768699117088,0.00947452,95063.0,95044.0,0.00926878]
[1768699117387,0.01310812,95064.0,95048.0,0.00926878]
[1768699120481,0.00231423,95064.0,95049.0,0.00926878]
[1768699120687,0.00231423,95064.0,95050.0,0.00926878]
[1768699120883,0.00231423,95064.0,95054.0,0.00926878]
[1768699121088,0.00231423,95064.0,95053.0,0.09859502]
[1768699123491,0.00231423,95064.0,95053.0,0.1078638]
[1768699124596,0.00231423,95064.0,95054.0,0.00926878]
[1768699124781,0.010521,95075.0,95054.0,0.00926878]
[1768699124988,0.09476,95073.0,95054.0,0.00926878]
[1768699125189,0.1512158,95073.0,95054.0,0.00926878]
[1768699125391,0.09476,95073.0,95058.0,0.00926878]
[1768699126589,0.09476,95073.0,95057.0,0.09859502]
[1768699127293,0.09476,95073.0,95058.0,0.00926878]
[1768699127888,0.09476,95073.0,95054.0,0.00926878]
[1768699128089,0.09476,95073.0,95052.0,0.09859502]
[1768699128090,0.0209438,95070.0,95052.0,0.09859502]
[1768699128292,0.0209438,95070.0,95052.0,0.1078638]
[1768699128796,0.0209438,95070.0,95053.0,0.00926878]
[1768699128797,0.01283612,95069.0,95053.0,0.00926878]
[1768699128995,0.00231412,95069.0,95053.0,0.00926878]
[1768699129398,0.00231412,95069.0,95054.0,0.00926878]
[1768699129595,0.00231412,95069.0,95057.0,0.00926878]
[1768699129986,0.00231412,95069.0,95056.0,0.09859502]
[1768699132083,0.00231412,95069.0,95056.0,0.10812349]
[1768699132483,0.00231412,95069.0,95057.0,0.00952847]
[1768699134294,0.00231412,95069.0,95040.0,0.09049935]
[1768699134295,0.010523,95059.0,95040.0,0.09049935]
[1768699134497,0.00993602,95060.0,95036.0,0.09476]
[1768699134498,0.10150107,95055.0,95036.0,0.09476]
[1768699134794,0.00993602,95054.0,95036.0,0.09476]
[1768699135096,0.00993602,95058.0,95037.0,0.00952847]
[1768699135484,0.00993602,95058.0,95038.0,0.00952847]
[1768699135698,0.00993602,95058.0,95039.0,0.010525]
[1768699135999,0.09156505,95060.0,95040.0,0.00952847]
[1768699136391,0.09156505,95060.0,95041.0,0.010525]
[1768699136600,0.09156505,95060.0,95041.0,0.02005347]
[1768699136798,0.09156505,95060.0,95044.0,0.010525]
[1768699136995,0.09476,95061.0,95047.0,0.010524]
[1768699137292,0.00231412,95069.0,95051.0,0.00952847]
[1768699137496,0.00231412,95069.0,95056.0,0.00952847]
[1768699142705,0.00231412,95069.0,95056.0,0.10002782]
[1768699142897,0.09476,95076.0,95061.0,0.00952847]
[1768699143694,0.10150107,95083.0,95064.0,0.00952847]
[1768699143898,0.09476,95082.0,95064.0,0.00952847]
[1768699144098,0.10538345,95082.0,95064.0,0.00952847]
[1768699144401,0.10538345,95082.0,95065.0,0.00952847]
[1768699144607,0.09476,95082.0,95065.0,0.00952847]
[1768699144913,0.09476,95082.0,95066.0,0.00952847]
[1768699146604,0.010521,95081.0,95065.0,0.09049935]
[1768699146811,0.010521,95079.0,95060.0,0.02839531]
[1768699147002,0.010521,95079.0,95059.0,0.10002782]
[1768699147003,0.00993602,95076.0,95059.0,0.02839531]
[1768699147306,0.00993602,95075.0,95060.0,0.02839531]
[1768699147809,0.09156505,95076.0,95059.0,0.02839531]
[1768699148711,0.010521,95078.0,95059.0,0.02839531]
[1768699149111,0.010521,95075.0,95059.0,0.02839531]
[1768699149309,0.00993602,95073.0,95059.0,0.02839531]
[1768699151305,0.02045702,95073.0,95059.0,0.02839531]
[1768699151507,0.09156505,95074.0,95059.0,0.02839531]
[1768699151902,0.00993602,95077.0,95059.0,0.02839531]
[1768699152103,0.09476,95078.0,95059.0,0.03792378]
[1768699152812,0.09476,95078.0,95060.0,0.00952847]
[1768699153215,0.09476,95078.0,95061.0,0.00952847]
[1768699154109,0.01062548,95083.0,95064.0,0.00952847]
[1768699154318,0.09476,95079.0,95064.0,0.00952847]
[1768699154517,0.09476,95079.0,95064.0,0.10002782]
[1768699154819,0.09476,95079.0,95065.0,0.00952847]
[1768699155220,0.09476,95082.0,95068.0,0.00952847]
[1768699158919,0.09476,95082.0,95067.0,0.09049935]
[1768699159412,0.010521,95081.0,95065.0,0.00952847]
[1768699159612,0.010521,95079.0,95061.0,0.10002782]
[1768699161312,0.00993602,95079.0,95059.0,0.02839531]
[1768699161518,0.010521,95077.0,95060.0,0.02839531]
[1768699161820,0.00993602,95079.0,95060.0,0.02839531]
[1768699162413,0.00993602,95079.0,95060.0,0.03810834]
[1768699163819,0.10208605,95080.0,95061.0,0.00971303]
[1768699164420,0.03219644,95083.0,95062.0,0.00971303]
[1768699164923,0.02167644,95083.0,95062.0,0.00971303]
[1768699165121,0.01052,95082.0,95062.0,0.00971303]
[1768699165516,0.02167644,95083.0,95062.0,0.00971303]
[1768699166113,0.02167644,95083.0,95063.0,0.00971303]
[1768699166724,0.01249714,95083.0,95067.0,0.09289814]
[1768699166928,0.00231374,95084.0,95068.0,0.00971303]
[1768699167826,0.00231374,95084.0,95070.0,0.00971303]
[1768699168133,0.00231374,95084.0,95071.0,0.00971303]
[1768699168629,0.00231374,95084.0,95072.0,0.00971303]
[1768699170532,0.01424866,95084.0,95072.0,0.00971303]
[1768699171634,0.01424866,95084.0,95071.0,0.09289814]
[1768699172333,0.01424866,95084.0,95071.0,0.10261117]
[1768699172733,0.01424866,95084.0,95072.0,0.10261117]
[1768699172933,0.01424866,95084.0,95074.0,0.00971303]
[1768699175630,0.00231374,95084.0,95074.0,0.00971303]
[1768699176135,0.09476,95098.0,95081.0,0.00990843]
[1768699176728,0.00951987,95102.0,95081.0,0.00990843]
[1768699176937,0.09476,95101.0,95081.0,0.00990843]
[1768699177137,0.11057822,95100.0,95082.0,0.00990843]
[1768699177827,0.12009809,95100.0,95081.0,0.09768455]
[1768699178231,0.11057822,95100.0,95082.0,0.00990843]
[1768699178431,0.11057822,95100.0,95083.0,0.00990843]
[1768699178939,0.01198562,95100.0,95083.0,0.00990843]
[1768699179123,0.09476,95101.0,95083.0,0.00990843]
[1768699179324,0.09476,95101.0,95082.0,0.09768455]
[1768699179325,0.11057822,95100.0,95082.0,0.09768455]
[1768699180736,0.12009809,95100.0,95082.0,0.09768455]
[1768699181133,0.13061609,95100.0,95082.0,0.09768455]
[1768699181540,0.010519,95098.0,95079.0,0.00990843]
[1768699181834,0.00951987,95098.0,95079.0,0.00990843]
[1768699182138,0.11057822,95090.0,95075.0,0.09476]
[1768699182339,0.01052,95089.0,95075.0,0.09476]
[1768699183235,0.11057822,95090.0,95075.0,0.09476]
[1768699183829,0.11057822,95085.0,95075.0,0.09476]
[1768699184030,0.12109822,95085.0,95065.0,0.00990843]
[1768699184341,0.11057822,95080.0,95065.0,0.10466843]
[1768699184935,0.11057822,95080.0,95069.0,0.00231412]
[1768699186436,0.10769932,95088.0,95069.0,0.00231412]
[1768699190846,0.11821932,95088.0,95069.0,0.00231412]
[1768699192950,0.11821932,95088.0,95071.0,0.02839531]
[1768699193151,0.00968512,95087.0,95071.0,0.02839531]
[1768699193942,0.00968512,95087.0,95072.0,0.02839531]
[1768699194346,0.00968512,95087.0,95073.0,0.02839531]
[1768699194852,0.00968512,95083.0,95073.0,0.02839531]
[1768699195150,0.00968512,95082.0,95073.0,0.02839531]
[1768699195558,0.09517427,95083.0,95073.0,0.02839531]
[1768699195751,0.00968512,95086.0,95073.0,0.02839531]
[1768699197742,0.00968512,95086.0,95074.0,0.02839531]
[1768699198854,0.01052,95085.0,95074.0,0.02839531]
[1768699199045,0.01052,95085.0,95073.0,0.02839531]
[1768699199246,0.01052,95085.0,95074.0,0.02839531]
[1768699199850,0.02020512,95085.0,95074.0,0.02839531]
[1768699200150,0.01052,95082.0,95074.0,0.02839531]
[1768699200354,0.00968512,95081.0,95069.0,0.00231412]
[1768699200653,0.11057822,95080.0,95067.0,0.0379373]
[1768699201157,0.10485939,95079.0,95067.0,0.0379373]
[1768699201354,0.00968512,95077.0,95067.0,0.0379373]
[1768699201560,0.09517427,95078.0,95066.0,0.0379373]
[1768699202956,0.09517427,95078.0,95067.0,0.0379373]
[1768699203358,0.09517427,95078.0,95067.0,0.0378848]
[1768699205155,0.00968512,95074.0,95061.0,0.05676695]
[1768699205543,0.00968512,95074.0,95060.0,0.05676695]
[1768699205745,0.09517427,95075.0,95060.0,0.05676695]
[1768699206356,0.00968512,95077.0,95060.0,0.05676695]
[1768699207151,0.00968512,95077.0,95059.0,0.05676695]
[1768699208060,0.00968512,95077.0,95057.0,0.00903001]
[1768699209764,0.11057822,95070.0,95054.0,0.05676695]
[1768699210965,0.010522,95072.0,95054.0,0.05676695]
[1768699211159,0.11057822,95070.0,95054.0,0.05676695]
[1768699211355,0.010522,95072.0,95054.0,0.05676695]
[1768699211556,0.11057822,95070.0,95053.0,0.05676695]
[1768699212562,0.010522,95065.0,95053.0,0.05676695]
[1768699212761,0.010523,95063.0,95049.0,0.05908156]
[1768699212962,0.02020712,95066.0,95051.0,0.05676695]
[1768699213166,0.00968512,95065.0,95050.0,0.05676695]
[1768699213858,0.11057822,95060.0,95050.0,0.05676695]
[1768699214266,0.00968512,95065.0,95049.0,0.00231461]
[1768699214473,0.010522,95064.0,95049.0,0.00231461]
[1768699214659,0.00968512,95065.0,95049.0,0.00231461]
[1768699214854,0.010522,95064.0,95049.0,0.00231461]
[1768699215060,0.11057822,95060.0,95044.0,0.00231472]
[1768699216156,0.010523,95059.0,95044.0,0.00231472]
[1768699216358,0.00968512,95058.0,95044.0,0.00231472]
[1768699217462,0.11057822,95060.0,95044.0,0.00231472]
[1768699220971,0.12110122,95060.0,95044.0,0.00231472]
[1768699223875,0.13036102,95060.0,95044.0,0.00231472]
[1768699226289,0.0092598,95059.0,95044.0,0.00231472]
[1768699226489,0.0197828,95058.0,95044.0,0.00231472]
[1768699226689,0.0092598,95057.0,95044.0,0.00231472]
[1768699227494,0.010523,95056.0,95044.0,0.00231472]
[1768699227689,0.0092598,95055.0,95044.0,0.00231472]
[1768699227895,0.0092598,95055.0,95039.0,0.09476]
[1768699228601,0.09904508,95057.0,95039.0,0.09476]
[1768699229200,0.10830488,95057.0,95039.0,0.09476]
[1768699229600,0.0092598,95056.0,95039.0,0.09476]
[1768699232704,0.10956808,95057.0,95039.0,0.09476]
[1768699232900,0.010523,95057.0,95039.0,0.10410563]
[1768699235603,0.010523,95059.0,95039.0,0.10410563]
[1768699235806,0.02040064,95057.0,95039.0,0.09476]
[1768699236098,0.00987764,95053.0,95039.0,0.09476]
[1768699236490,0.00987764,95053.0,95034.0,0.00932524]
[1768699236893,0.09836489,95054.0,95034.0,0.00932524]
[1768699237495,0.10824253,95050.0,95031.0,0.05676695]
[1768699237800,0.00987764,95047.0,95031.0,0.05676695]
[1768699238003,0.00987764,95054.0,95032.0,0.00932524]
[1768699238204,0.00987764,95054.0,95034.0,0.10180678]
[1768699238404,0.00987764,95054.0,95035.0,0.00932524]
[1768699239907,0.010524,95053.0,95035.0,0.00932524]
[1768699240710,0.010524,95050.0,95034.0,0.09248154]
[1768699241009,0.010524,95050.0,95032.0,0.00932524]
[1768699241211,0.010524,95050.0,95032.0,0.06609219]
[1768699242211,0.010524,95050.0,95033.0,0.05676695]
[1768699242612,0.10824253,95055.0,95035.0,0.00932524]
[1768699242814,0.11876653,95055.0,95035.0,0.00932524]
[1768699243808,0.10824253,95055.0,95035.0,0.00932524]
[1768699244213,0.11876553,95055.0,95035.0,0.00932524]
[1768699244410,0.00987764,95054.0,95035.0,0.00932524]
[1768699244605,0.00987764,95054.0,95034.0,0.10300754]
[1768699245215,0.00987764,95054.0,95034.0,0.15977449]
[1768699245715,0.010524,95053.0,95034.0,0.14924849]
[1768699246923,0.010524,95053.0,95034.0,0.09248154]
[1768699247417,0.00987764,95054.0,95034.0,0.10180678]
[1768699248212,0.00987764,95054.0,95034.0,0.15857373]
[1768699249216,0.00987764,95054.0,95035.0,0.05676695]
[1768699249618,0.00987764,95054.0,95034.0,0.15857373]
[1768699250622,0.00987764,95054.0,95035.0,0.01985124]
[1768699250916,0.09836489,95055.0,95037.0,0.010525]
[1768699252321,0.09836489,95055.0,95037.0,0.00954945]
[1768699252522,0.00987764,95058.0,95037.0,0.00954945]
[1768699252918,0.09476,95057.0,95037.0,0.00954945]
[1768699253426,0.010524,95054.0,95037.0,0.00954945]
[1768699254425,0.105283,95057.0,95037.0,0.00954945]
[1768699255729,0.105283,95057.0,95039.0,0.1042477]
[1768699255929,0.105283,95057.0,95040.0,0.00954945]
[1768699257833,0.105283,95057.0,95039.0,0.09469825]
[1768699258830,0.11441558,95057.0,95039.0,0.09469825]
[1768699259631,0.09476,95057.0,95039.0,0.1042477]
[1768699260127,0.105283,95057.0,95040.0,0.00954945]
[1768699260327,0.105283,95057.0,95041.0,0.00954945]
[1768699261431,0.09476,95057.0,95041.0,0.00954945]
[1768699262229,0.09476,95057.0,95042.0,0.03790283]
[1768699262734,0.11421325,95060.0,95041.0,0.00954945]
[1768699263130,0.20897325,95060.0,95041.0,0.00954945]
[1768699263331,0.00913258,95059.0,95040.0,0.13260108]
[1768699267544,0.00913258,95059.0,95040.0,0.14215053]
[1768699268546,0.00913258,95059.0,95041.0,0.03790283]
[1768699271150,0.18931767,95060.0,95041.0,0.03790283]
[1768699271151,0.18931767,95060.0,95042.0,0.03790283]
[1768699271350,0.18931767,95060.0,95043.0,0.02007445]
[1768699271351,0.09476,95060.0,95043.0,0.02007445]
[1768699272753,0.09476,95060.0,95044.0,0.03790283]
[1768699272949,0.09476,95060.0,95043.0,0.02007445]
[1768699273756,0.02116849,95059.0,95043.0,0.02007445]
[1768699273955,0.09476,95060.0,95043.0,0.02007445]
[1768699273956,0.02116849,95058.0,95043.0,0.02007445]
[1768699274255,0.02116849,95057.0,95043.0,0.02007445]
[1768699274447,0.02116849,95056.0,95043.0,0.02007445]
[1768699274647,0.09476,95060.0,95043.0,0.02007445]
[1768699274844,0.09476,95060.0,95045.0,0.00954945]
[1768699275049,0.09476,95060.0,95047.0,0.00954945]
[1768699275651,0.09476,95060.0,95046.0,0.09469825]
[1768699279560,0.00231423,95064.0,95046.0,0.1042477]
[1768699279863,0.09476,95063.0,95047.0,0.00954945]
[1768699280462,0.00231423,95064.0,95049.0,0.00954945]
[1768699280657,0.09707423,95064.0,95050.0,0.00954945]
[1768699290364,0.09707423,95064.0,95049.0,0.09469825]
[1768699291871,0.09707423,95064.0,95049.0,0.12312639]
[1768699293068,0.09707423,95064.0,95049.0,0.13365039]
[1768699295069,0.00231423,95064.0,95049.0,0.13365039]
[1768699295458,0.00231423,95064.0,95049.0,0.14335144]
[1768699295766,0.00231423,95064.0,95049.0,0.13282744]
[1768699297871,0.00231423,95064.0,95050.0,0.02842814]
[1768699299767,0.00231423,95064.0,95052.0,0.00970105]
[1768699300960,0.00231423,95064.0,95054.0,0.00970105]
[1768699301161,0.00231412,95069.0,95058.0,0.00970105]
[1768699302563,0.10387453,95079.0,95059.0,0.010523]
[1768699302769,0.16094007,95079.0,95059.0,0.010523]
[1768699302967,0.00945697,95078.0,95059.0,0.02842814]
[1768699303372,0.00945697,95078.0,95058.0,0.02842814]
[1768699304273,0.00945697,95078.0,95057.0,0.03895114]
[1768699304466,0.00945697,95078.0,95057.0,0.04865219]
[1768699304666,0.00945697,95078.0,95058.0,0.00970105]
[1768699305569,0.09441756,95079.0,95060.0,0.00970105]
[1768699306477,0.09476,95078.0,95061.0,0.00970105]
[1768699307582,0.09476,95078.0,95061.0,0.02022405]
[1768699312982,0.09476,95078.0,95061.0,0.010523]
[1768699313981,0.09476,95078.0,95060.0,0.09997174]
[1768699314182,0.11470762,95078.0,95060.0,0.11063317]
[1768699314881,0.10418662,95078.0,95060.0,0.11063317]
[1768699315383,0.10418662,95078.0,95061.0,0.010523]
[1768699316986,0.09476,95078.0,95062.0,0.00953078]
[1768699317982,0.00942662,95080.0,95063.0,0.010522]
[1768699318188,0.09476,95081.0,95062.0,0.00953078]
[1768699318888,0.00231374,95084.0,95070.0,0.11063317]
[1768699319088,0.09707374,95084.0,95070.0,0.11063317]
[1768699319285,0.00231374,95084.0,95070.0,0.11063317]
[1768699319988,0.00231374,95084.0,95068.0,0.00953078]
[1768699321380,0.00231374,95084.0,95069.0,0.010522]
[1768699321684,0.00231363,95089.0,95071.0,0.00953078]
[1768699321885,0.09707363,95089.0,95071.0,0.00953078]
[1768699322085,0.09707363,95089.0,95072.0,0.010522]
[1768699322275,0.00231363,95089.0,95072.0,0.010522]
[1768699322482,0.00231363,95089.0,95072.0,0.02005278]
[1768699322678,0.00231363,95089.0,95074.0,0.02005178]
[1768699323087,0.00231363,95089.0,95076.0,0.00953078]
[1768699323398,0.00231363,95089.0,95076.0,0.00267889]
[1768699323785,0.00231363,95089.0,95075.0,0.09333052]
[1768699325999,0.00231363,95089.0,95072.0,0.00953078]
[1768699326401,0.00231363,95089.0,95073.0,0.00953078]
[1768699328809,0.00231363,95089.0,95074.0,0.010521]
[1768699330706,0.00231363,95089.0,95074.0,0.02005178]
[1768699331114,0.01233303,95100.0,95081.0,0.00953078]
[1768699331304,0.09476,95102.0,95084.0,0.1028613]
[1768699331503,0.10761905,95102.0,95084.0,0.1028613]
[1768699332398,0.10761905,95102.0,95080.0,0.11063317]
[1768699332399,0.00942662,95101.0,95081.0,0.00953078]
[1768699334009,0.010518,95100.0,95081.0,0.00953078]
[1768699334304,0.01994462,95100.0,95081.0,0.00953078]
[1768699334706,0.00942662,95100.0,95081.0,0.00953078]
[1768699335304,0.00942662,95099.0,95078.0,0.09333052]
[1768699335504,0.00942662,95099.0,95080.0,0.11063317]
[1768699336509,0.00942662,95099.0,95080.0,0.12016395]
[1768699339714,0.10992223,95100.0,95081.0,0.00953078]
[1768699340216,0.010518,95100.0,95082.0,0.00953078]
[1768699340411,0.11704567,95102.0,95082.0,0.00953078]
[1768699341502,0.02228567,95102.0,95083.0,0.00953078]
[1768699341708,0.01285905,95102.0,95087.0,0.00953078]
[1768699341908,0.09476,95103.0,95087.0,0.00953078]
[1768699342113,0.09476,95103.0,95090.0,0.11063317]
[1768699343211,0.09476,95103.0,95086.0,0.09333052]
[1768699343518,0.010518,95102.0,95084.0,0.00924459]
[1768699344515,0.010519,95100.0,95084.0,0.00924459]
[1768699345102,0.00952691,95096.0,95080.0,0.13906131]
[1768699345303,0.00952691,95096.0,95080.0,0.23378131]
[1768699345504,0.00952691,95096.0,95080.0,0.12314814]
[1768699345719,0.1016596,95097.0,95080.0,0.12314814]
[1768699346113,0.0911406,95097.0,95080.0,0.12314814]
[1768699346416,0.010519,95095.0,95080.0,0.09472]
[1768699347009,0.010519,95098.0,95080.0,0.09472]
[1768699348113,0.010519,95098.0,95080.0,0.12314814]
[1768699348324,0.010519,95098.0,95081.0,0.02842814]
[1768699349213,0.010519,95098.0,95081.0,0.03767273]
[1768699349519,0.11063317,95100.0,95082.0,0.00924459]
[1768699353021,0.11063317,95100.0,95084.0,0.02839812]
[1768699353809,0.010519,95099.0,95084.0,0.02839812]
[1768699354726,0.010519,95097.0,95084.0,0.02839812]
[1768699356421,0.010519,95097.0,95082.0,0.00924459]
[1768699356422,0.12115117,95100.0,95085.0,0.02839812]
[1768699357427,0.010518,95100.0,95085.0,0.02839812]
[1768699357836,0.010519,95097.0,95085.0,0.02839812]
[1768699359135,0.010519,95097.0,95086.0,0.02839812]
[1768699360036,0.010519,95096.0,95086.0,0.02839812]
[1768699361132,0.010519,95096.0,95087.0,0.02839812]
[1768699361334,0.010519,95096.0,95086.0,0.02839812]
[1768699362039,0.010519,95096.0,95087.0,0.02839812]
[1768699362243,0.01952039,95100.0,95087.0,0.02839812]
[1768699362536,0.010518,95100.0,95087.0,0.02839812]
[1768699363040,0.010518,95100.0,95081.0,0.09497122]
[1768699363337,0.010518,95100.0,95082.0,0.00996345]
[1768699364343,0.09160759,95101.0,95082.0,0.00996345]
[1768699364344,0.010519,95098.0,95082.0,0.00996345]
[1768699365738,0.10212559,95101.0,95082.0,0.00996345]
[1768699365938,0.11112798,95101.0,95082.0,0.00996345]
[1768699367542,0.010519,95099.0,95082.0,0.00996345]
[1768699368832,0.010519,95099.0,95081.0,0.09497122]
[1768699370344,0.010519,95096.0,95081.0,0.09497122]
[1768699370642,0.00900239,95098.0,95080.0,0.09472]
[1768699370839,0.00900239,95098.0,95079.0,0.00996345]
[1768699371337,0.010519,95099.0,95079.0,0.09380284]
[1768699371542,0.010519,95099.0,95080.0,0.00996345]
[1768699371743,0.010519,95099.0,95081.0,0.00996345]
[1768699372843,0.010518,95100.0,95081.0,0.00996345]
[1768699373031,0.010519,95098.0,95088.0,0.02839812]
[1768699373230,0.010519,95098.0,95088.0,0.00803689]
[1768699373431,0.11112798,95101.0,95088.0,0.00803689]
[1768699373931,0.11112798,95101.0,95085.0,0.03790901]
[1768699375644,0.00979487,95100.0,95085.0,0.03790901]
[1768699377245,0.010519,95099.0,95085.0,0.03790901]
[1768699377545,0.010519,95097.0,95085.0,0.03790901]
[1768699378345,0.02031287,95100.0,95085.0,0.03790901]
[1768699379748,0.010518,95100.0,95085.0,0.03790901]
[1768699380653,0.09160759,95101.0,95085.0,0.03790901]
[1768699380841,0.09160759,95101.0,95086.0,0.03790901]
[1768699381348,0.02206261,95103.0,95086.0,0.03790901]
[1768699382451,0.02206261,95103.0,95085.0,0.03790901]
[1768699382638,0.010518,95102.0,95085.0,0.03790901]
[1768699383039,0.010518,95102.0,95083.0,0.04768943]
[1768699383243,0.02206261,95103.0,95083.0,0.04768943]
[1768699383840,0.02206261,95103.0,95084.0,0.00978042]
[1768699384654,0.11678261,95103.0,95084.0,0.00978042]
[1768699384860,0.010518,95102.0,95084.0,0.00978042]
[1768699388553,0.010519,95099.0,95084.0,0.00978042]
[1768699388959,0.010518,95102.0,95084.0,0.00978042]
[1768699389859,0.02031287,95102.0,95083.0,0.0958674]
[1768699390061,0.010519,95100.0,95083.0,0.0958674]
[1768699390363,0.010519,95098.0,95083.0,0.0958674]
[1768699392050,0.010518,95101.0,95083.0,0.0958674]
[1768699392758,0.010518,95101.0,95083.0,0.10564782]
[1768699393058,0.010518,95101.0,95084.0,0.03790901]
[1768699393259,0.00979487,95102.0,95085.0,0.03790901]
[1768699393952,0.02031287,95102.0,95085.0,0.03790901]
[1768699394649,0.010518,95102.0,95085.0,0.04768943]
[1768699396659,0.10698774,95103.0,95085.0,0.04768943]
[1768699397460,0.02278574,95103.0,95085.0,0.04768943]
[1768699399661,0.010518,95100.0,95085.0,0.04768943]
[1768699399862,0.010518,95100.0,95085.0,0.00978042]
[1768699400559,0.01226774,95103.0,95085.0,0.00978042]
[1768699400862,0.09703326,95104.0,95085.0,0.00978042]
[1768699401261,0.09703326,95104.0,95085.0,0.04768943]
[1768699401460,0.010518,95102.0,95085.0,0.00978042]
[1768699401859,0.09703326,95104.0,95085.0,0.00978042]
[1768699402062,0.10966156,95104.0,95085.0,0.00978042]
[1768699403667,0.11878832,95104.0,95085.0,0.00978042]
[1768699404569,0.010518,95100.0,95085.0,0.00978042]
[1768699405572,0.010518,95100.0,95083.0,0.0958674]
[1768699406968,0.010518,95100.0,95083.0,0.10521553]
[1768699411375,0.010518,95100.0,95084.0,0.00934813]
[1768699411775,0.010518,95103.0,95084.0,0.00934813]
[1768699413271,0.010518,95103.0,95083.0,0.08126147]
[1768699414079,0.010518,95101.0,95083.0,0.08126147]
[1768699415382,0.010518,95101.0,95084.0,0.10113885]
[1768699415884,0.010519,95099.0,95084.0,0.10113885]
[1768699419180,0.11878832,95104.0,95085.0,0.10113885]
[1768699419388,0.10966156,95104.0,95087.0,0.00964833]
[1768699419577,0.010518,95103.0,95087.0,0.00964833]
[1768699419883,0.12017956,95104.0,95087.0,0.00964833]
[1768699421485,0.12017956,95104.0,95086.0,0.07718479]
[1768699424084,0.12017956,95104.0,95087.0,0.00964833]
[1768699426086,0.12017956,95104.0,95088.0,0.10113885]
[1768699426291,0.12017956,95104.0,95089.0,0.00964833]
[1768699427392,0.12017956,95104.0,95088.0,0.09149052]
[1768699428096,0.12017956,95104.0,95088.0,0.10113885]
[1768699429991,0.10966156,95104.0,95088.0,0.09149052]
[1768699430188,0.10966156,95104.0,95092.0,0.00964833]